bitfinex/quotes_BTCUSD_20250515
["timestamp","ask_amount","ask_price","bid_price","bid_amount"]
[1747339691869,0.21332232,103130.0,103120.0,0.0311]
[1747339692120,0.21332232,103130.0,103120.0,0.48832606]
[1747339692351,0.47396232,103130.0,103120.0,0.94555212]
[1747339692787,0.70718408,103140.0,103130.0,0.00969612]
[1747339693007,0.2606,103140.0,103130.0,0.6232258]
[1747339693260,0.34199257,103150.0,103140.0,0.19391118]
[1747339693502,0.01939233,103130.0,103120.0,0.45722606]
[1747339693728,0.01938998,103140.0,103130.0,0.22301853]
[1747339693993,0.01474011,103170.0,103160.0,0.21326065]
[1747339694228,0.48425226,103170.0,103160.0,1.14981929]
[1747339694492,0.5521508,103170.0,103160.0,0.94625212]
[1747339694714,0.34860279,103170.0,103160.0,1.14981929]
[1747339694949,0.34860279,103170.0,103160.0,0.45722606]
[1747339694950,0.07759081,103170.0,103160.0,0.45722606]
[1747339695178,0.07759081,103170.0,103160.0,1.12771277]
[1747339695396,0.0872827,103170.0,103160.0,0.66079332]
[1747339695632,0.10666685,103170.0,103160.0,1.10832571]
[1747339696116,0.34624294,103170.0,103160.0,1.04931683]
[1747339696344,0.33981025,103170.0,103160.0,1.03962316]
[1747339696576,0.3301177,103170.0,103160.0,1.03962316]
[1747339696799,0.35881015,103170.0,103160.0,0.5853971]
[1747339697279,0.34950279,103170.0,103160.0,0.5823971]
[1747339697508,0.49889608,103170.0,103150.0,0.59389201]
[1747339697743,0.01938632,103160.0,103150.0,0.60358662]
[1747339697955,0.50858882,103170.0,103150.0,1.07050711]
[1747339698179,0.51828127,103170.0,103160.0,0.65109965]
[1747339698398,0.51828127,103170.0,103160.0,0.19387359]
[1747339698635,0.51628127,103170.0,103160.0,0.65109965]
[1747339698857,0.51428127,103170.0,103160.0,0.19387359]
[1747339699102,0.2783443,103170.0,103160.0,0.19383359]
[1747339699318,0.2977293,103170.0,103160.0,0.19383359]
[1747339699993,0.48289221,103170.0,103160.0,0.19383359]
[1747339700213,0.47320004,103170.0,103160.0,0.19383359]
[1747339700678,0.9314261,103170.0,103160.0,0.19383359]
[1747339701128,0.22299672,103140.0,103130.0,0.01554385]
[1747339701130,0.21328172,103150.0,103140.0,0.19391118]
[1747339701351,0.67050778,103150.0,103140.0,0.19391118]
[1747339701587,0.01939045,103140.0,103130.0,0.19407384]
[1747339701827,0.0096948,103140.0,103130.0,0.20377033]
[1747339702081,0.0096948,103140.0,103130.0,0.21346655]
[1747339702082,0.36908488,103140.0,103130.0,0.21346655]
[1747339702321,0.3593897,103140.0,103130.0,0.19407384]
[1747339702560,0.38847551,103140.0,103130.0,0.19407384]
[1747339702764,0.37877996,103140.0,103130.0,0.19407384]
[1747339702980,0.56299699,103140.0,103130.0,0.19407384]
[1747339703218,1.02022305,103140.0,103130.0,0.19407384]
[1747339703581,0.34969471,103140.0,103130.0,0.21346673]
[1747339703808,0.57269161,103140.0,103130.0,0.19607384]
[1747339703998,1.44146818,103140.0,103130.0,0.00214385]
[1747339704329,1.16996619,103140.0,103130.0,0.19407384]
[1747339704473,0.62512563,103140.0,103130.0,0.19507384]
[1747339704820,0.46934182,103140.0,103130.0,0.00114385]
[1747339705037,0.92656788,103140.0,103130.0,0.00114385]
[1747339705338,0.46934182,103140.0,103130.0,0.00114385]
[1747339705539,0.92656788,103140.0,103130.0,0.00114385]
[1747339705677,0.92656788,103140.0,103130.0,0.19607384]
[1747339705868,0.67052788,103140.0,103130.0,0.19607384]
[1747339706064,0.47825547,103150.0,103140.0,0.19391118]
[1747339706320,0.00969386,103150.0,103140.0,0.20360655]
[1747339706625,0.47803376,103160.0,103150.0,0.19389238]
[1747339706780,0.56565005,103160.0,103150.0,0.19389238]
[1747339706984,1.07045339,103170.0,103160.0,0.19387359]
[1747339707240,0.81839278,103170.0,103160.0,0.20356726]
[1747339707402,0.8086991,103170.0,103160.0,0.20356726]
[1747339707608,0.82808401,103170.0,103160.0,0.20356726]
[1747339707803,0.82808401,103170.0,103160.0,0.19387359]
[1747339708007,1.16808401,103170.0,103160.0,0.19387359]
[1747339708187,0.49699503,103170.0,103160.0,0.13485667]
[1747339708383,0.50668739,103170.0,103160.0,0.125163]
[1747339708611,0.4969955,103170.0,103160.0,0.125163]
[1747339708830,0.4969955,103170.0,103160.0,0.13485649]
[1747339708831,0.82730276,103170.0,103160.0,0.13485649]
[1747339709017,0.82730276,103170.0,103160.0,0.125163]
[1747339709218,0.35069208,103170.0,103160.0,0.14454997]
[1747339709437,0.85599585,103170.0,103160.0,0.13485658]
[1747339709641,0.8627459,103170.0,103160.0,0.13485667]
[1747339709854,0.8627459,103170.0,103160.0,0.14455025]
[1747339710135,0.88556621,103170.0,103160.0,0.13485667]
[1747339710334,0.74097322,103170.0,103160.0,0.09523775]
[1747339710537,0.40097322,103170.0,103160.0,0.22454715]
[1747339710955,0.41066511,103170.0,103160.0,0.22454715]
[1747339711158,0.39266496,103170.0,103160.0,0.62454715]
[1747339711365,0.38297307,103170.0,103160.0,0.62454715]
[1747339711571,0.39266505,103170.0,103160.0,0.62454715]
[1747339711776,0.41204949,103170.0,103160.0,0.50785162]
[1747339712010,0.86927555,103170.0,103160.0,0.44885079]
[1747339712183,0.38297307,103170.0,103160.0,0.67180437]
[1747339712396,0.39266496,103170.0,103160.0,0.67180437]
[1747339712600,0.41204949,103170.0,103160.0,0.67180437]
[1747339712997,0.41204949,103170.0,103160.0,0.66211135]
[1747339713266,1.06313101,103170.0,103160.0,0.59387359]
[1747339713500,0.22297453,103150.0,103140.0,0.88201118]
[1747339713723,0.69474219,103150.0,103140.0,0.12522094]
[1747339713978,0.22784229,103140.0,103130.0,0.00014385]
[1747339714195,0.47851696,103140.0,103130.0,0.19392999]
[1747339714414,0.05037549,103140.0,103130.0,0.21332251]
[1747339714633,0.0212909,103140.0,103130.0,0.22301835]
[1747339714846,0.00675005,103140.0,103130.0,0.34232775]
[1747339715059,0.0600717,103140.0,103130.0,0.21592999]
[1747339715278,0.23459253,103140.0,103130.0,0.19388999]
[1747339715479,0.23459253,103140.0,103130.0,0.19488999]
[1747339715681,0.22489745,103140.0,103130.0,0.002]
[1747339715934,0.67242814,103140.0,103130.0,0.002]
[1747339716173,0.76973754,103140.0,103130.0,0.002]
[1747339716382,1.36149754,103140.0,103130.0,0.002]
[1747339716597,0.22303968,103120.0,103110.0,0.12725548]
[1747339717038,0.01939355,103120.0,103110.0,0.12725548]
[1747339717239,0.22978992,103120.0,103110.0,0.12725548]
[1747339717460,0.24433077,103120.0,103110.0,0.12725548]
[1747339717660,0.01939572,103110.0,103100.0,0.20368523]
[1747339717871,0.00969772,103110.0,103100.0,0.21338426]
[1747339718070,0.22981147,103110.0,103100.0,0.1939861]
[1747339718271,0.01939741,103100.0,103090.0,0.22302215]
[1747339718564,0.01939741,103100.0,103090.0,0.15444374]
[1747339718565,0.01939703,103100.0,103090.0,0.15444374]
[1747339718716,0.03879547,103100.0,103090.0,0.13807434]
[1747339718921,0.02614746,103100.0,103090.0,0.1574742]
[1747339719135,0.23953167,103100.0,103090.0,0.12837408]
[1747339719337,0.0358465,103100.0,103090.0,0.15077441]
[1747339719537,0.0358465,103100.0,103090.0,0.17017389]
[1747339719538,0.00675005,103100.0,103090.0,0.17017389]
[1747339719745,0.69190154,103100.0,103090.0,0.00617462]
[1747339720085,0.69190154,103100.0,103090.0,0.00613462]
[1747339720086,0.6088985,103100.0,103090.0,0.00613462]
[1747339720288,1.40612456,103100.0,103090.0,0.00613462]
[1747339720648,1.40612456,103100.0,103090.0,0.00813462]
[1747339720849,1.40612456,103100.0,103090.0,0.00313462]
[1747339721057,1.60174336,103100.0,103090.0,0.00313462]
[1747339721253,1.0482079,103100.0,103090.0,0.00313462]
[1747339721453,1.50543396,103100.0,103090.0,0.00313462]
[1747339721653,1.50543396,103100.0,103090.0,0.00309462]
[1747339722060,1.55313396,103100.0,103090.0,6.407e-05]
[1747339722260,6.49560646,103100.0,103090.0,6.407e-05]
[1747339722850,2.0107479,103100.0,103090.0,6.407e-05]
[1747339723055,1.03466705,103100.0,103090.0,6.407e-05]
[1747339723261,1.50843396,103100.0,103090.0,6.407e-05]
[1747339723688,0.03394183,103080.0,103070.0,0.21341366]
[1747339723896,0.73997307,103100.0,103090.0,0.21340546]
[1747339724158,0.40197307,103100.0,103090.0,0.25550494]
[1747339724347,0.40197307,103100.0,103090.0,1.02119434]
[1747339724501,0.40197307,103100.0,103090.0,1.4784204]
[1747339724703,0.38097307,103100.0,103090.0,1.8184204]
[1747339724948,0.37622302,103100.0,103090.0,1.8184204]
[1747339725615,0.37422302,103100.0,103090.0,1.8184204]
[1747339725759,0.37422302,103100.0,103090.0,1.75267022]
[1747339726854,0.37422302,103100.0,103090.0,1.75367022]
[1747339727703,0.37422302,103100.0,103090.0,1.75567022]
[1747339727856,0.37422302,103100.0,103090.0,1.68695352]
[1747339728446,0.37422302,103100.0,103090.0,1.43367352]
[1747339728656,0.37422302,103100.0,103090.0,1.93395352]
[1747339729075,0.56931776,103100.0,103090.0,1.93395352]
[1747339729286,0.56931776,103100.0,103090.0,1.86524025]
[1747339729492,0.56931776,103100.0,103090.0,2.05924548]
[1747339729862,0.56931776,103100.0,103090.0,2.06894545]
[1747339731339,0.56931776,103100.0,103090.0,1.6487204]
[1747339732167,0.52411776,103100.0,103090.0,2.0687204]
[1747339732793,0.21647474,103100.0,103090.0,2.0687204]
[1747339732990,0.21647474,103100.0,103090.0,2.00000952]
[1747339733269,0.21647474,103100.0,103090.0,1.99700952]
[1747339733475,0.21647474,103100.0,103090.0,2.0095794]
[1747339733673,0.21647474,103100.0,103090.0,2.0135794]
[1747339733882,0.18157784,103110.0,103100.0,0.60538324]
[1747339734060,0.18157784,103110.0,103100.0,1.5787987]
[1747339734272,0.19509474,103130.0,103120.0,0.22303997]
[1747339734484,0.20963559,103130.0,103120.0,1.69047543]
[1747339734840,0.01454085,103130.0,103120.0,1.69047543]
[1747339735268,0.01454085,103130.0,103120.0,1.69247543]
[1747339735462,0.01468401,103130.0,103120.0,1.69243543]
[1747339736759,0.15559451,103130.0,103120.0,1.69243543]
[1747339736953,0.15559451,103130.0,103120.0,1.65382797]
[1747339737912,0.11378913,103130.0,103120.0,1.65382797]
[1747339738364,0.11378913,103130.0,103120.0,1.61487573]
[1747339738569,0.11378913,103130.0,103120.0,1.95487573]
[1747339740024,0.00014316,103130.0,103120.0,1.95487573]
[1747339740572,0.00014316,103130.0,103120.0,1.46735488]
[1747339740780,0.00014316,103130.0,103120.0,1.44385488]
[1747339741937,0.09227482,103130.0,103120.0,0.3458294]
[1747339742149,0.32859714,103130.0,103120.0,0.24852]
[1747339742816,0.32859714,103130.0,103120.0,0.003]
[1747339743027,0.32874281,103130.0,103120.0,0.003]
[1747339743232,0.02452552,103130.0,103120.0,0.33498596]
[1747339743442,0.23784784,103130.0,103120.0,0.3330467]
[1747339743646,0.05361425,103130.0,103120.0,0.58826348]
[1747339743933,0.05361425,103130.0,103120.0,0.58726348]
[1747339744070,0.05346858,103130.0,103120.0,0.58526348]
[1747339744282,0.02437985,103130.0,103120.0,0.58526348]
[1747339744488,0.03407587,103130.0,103120.0,0.5843436]
[1747339744958,0.0631647,103130.0,103120.0,0.5843436]
[1747339745177,0.0534683,103130.0,103120.0,0.5843436]
[1747339745392,0.24739829,103130.0,103120.0,0.54555574]
[1747339745619,0.0232,103120.0,103100.0,0.61286545]
[1747339745854,0.24730026,103110.0,103100.0,0.98479167]
[1747339746064,0.04363428,103110.0,103100.0,1.00418946]
[1747339746304,0.02423838,103110.0,103100.0,1.40418946]
[1747339746537,0.0339361,103110.0,103100.0,1.00418946]
[1747339746752,0.0339361,103110.0,103100.0,1.00718946]
[1747339746968,0.0339361,103110.0,103100.0,1.01018946]
[1747339747182,0.0339361,103110.0,103100.0,1.00718946]
[1747339747626,0.0339361,103110.0,103100.0,1.01018946]
[1747339747826,0.01454085,103110.0,103100.0,1.01018946]
[1747339748651,0.24730007,103110.0,103100.0,0.99079205]
[1747339748854,0.04363419,103110.0,103100.0,1.01018946]
[1747339750323,0.03393619,103110.0,103100.0,1.01018946]
[1747339750524,0.04363419,103110.0,103100.0,1.01018946]
[1747339752011,0.0436341,103110.0,103100.0,1.01018946]
[1747339753478,0.05333219,103110.0,103100.0,1.01018946]
[1747339753967,0.0436341,103110.0,103100.0,1.01018946]
[1747339754556,0.01454085,103110.0,103100.0,1.01018946]
[1747339754772,0.24118689,103120.0,103110.0,0.20364965]
[1747339754975,0.25088395,103120.0,103110.0,0.20364965]
[1747339755604,0.24118689,103120.0,103110.0,0.19395146]
[1747339755819,0.24118689,103120.0,103110.0,0.21534812]
[1747339756438,0.24118689,103120.0,103110.0,0.22504631]
[1747339756642,0.26588689,103120.0,103110.0,0.21534812]
[1747339756846,0.26588689,103120.0,103110.0,0.20764984]
[1747339757255,0.26588689,103120.0,103110.0,0.21734803]
[1747339757467,0.05693506,103120.0,103110.0,0.22704603]
[1747339757674,0.02423753,103120.0,103110.0,0.23674375]
[1747339757924,0.02423753,103120.0,103110.0,0.33405315]
[1747339757925,0.04363128,103120.0,103110.0,0.33405315]
[1747339758130,0.04363128,103120.0,103110.0,0.33005315]
[1747339758684,0.03393422,103120.0,103110.0,0.33005315]
[1747339758894,0.02423763,103120.0,103110.0,0.33005315]
[1747339759069,0.01454085,103120.0,103110.0,0.33005315]
[1747339759297,0.02423753,103120.0,103110.0,0.33005315]
[1747339759692,0.01454085,103120.0,103110.0,0.33005315]
[1747339760097,0.02423753,103120.0,103110.0,0.33005315]
[1747339760658,0.04363137,103120.0,103110.0,0.33005315]
[1747339760876,0.04363127,103120.0,103110.0,0.29974791]
[1747339761383,0.01454085,103120.0,103110.0,0.29974791]
[1747339761825,0.03393449,103120.0,103110.0,0.29974791]
[1747339762241,0.0339344,103120.0,103110.0,0.29974791]
[1747339762654,0.01454085,103120.0,103110.0,0.29974791]
[1747339762884,0.03393459,103120.0,103110.0,0.29974791]
[1747339763073,0.02423763,103120.0,103110.0,0.29974791]
[1747339763490,0.0339345,103120.0,103110.0,0.29974791]
[1747339764714,0.01454085,103120.0,103110.0,0.29974791]
[1747339764916,0.02423763,103120.0,103110.0,0.29974791]
[1747339765327,0.02423744,103120.0,103110.0,0.29974791]
[1747339765542,0.03393431,103120.0,103110.0,0.29974791]
[1747339765691,0.03393422,103120.0,103110.0,0.29974791]
[1747339766261,0.04363118,103120.0,103110.0,0.29974791]
[1747339766641,0.02423744,103120.0,103110.0,0.29974791]
[1747339766775,0.03393412,103120.0,103110.0,0.29974791]
[1747339766978,0.04363108,103120.0,103110.0,0.29974791]
[1747339767189,0.01939572,103110.0,103100.0,0.87778352]
[1747339767396,0.01939553,103110.0,103100.0,0.98479158]
[1747339767599,0.01939553,103110.0,103100.0,0.98737061]
[1747339768026,0.0254,103110.0,103100.0,0.98737061]
[1747339768229,0.25328481,103120.0,103110.0,0.2133637]
[1747339768444,0.25328481,103120.0,103110.0,0.21336388]
[1747339769327,0.25328481,103120.0,103110.0,0.22306188]
[1747339769964,0.26298119,103120.0,103110.0,0.23275969]
[1747339770179,0.26298119,103120.0,103110.0,0.22306188]
[1747339770806,0.0690324,103120.0,103110.0,0.2327596]
[1747339771019,0.0690324,103120.0,103110.0,0.22306188]
[1747339771224,0.26298119,103120.0,103110.0,0.22306188]
[1747339771647,0.25328423,103120.0,103110.0,0.22306188]
[1747339771847,0.34242735,103120.0,103110.0,0.22306188]
[1747339773003,0.34242735,103120.0,103110.0,0.23275979]
[1747339773134,0.35893385,103120.0,103110.0,0.2424576]
[1747339773581,0.35893385,103120.0,103110.0,0.23275979]
[1747339773787,0.35212478,103120.0,103110.0,0.22306188]
[1747339774364,0.35212478,103120.0,103110.0,0.23275979]
[1747339774978,0.35212478,103120.0,103110.0,0.21336388]
[1747339775323,0.05319438,103110.0,103100.0,0.48290005]
[1747339775526,0.05319391,103110.0,103100.0,0.48290005]
[1747339775733,0.05319391,103110.0,103100.0,0.24450005]
[1747339775917,0.06289134,103110.0,103100.0,0.47538005]
[1747339776130,0.27140054,103110.0,103100.0,0.46568139]
[1747339776331,0.07743294,103110.0,103100.0,0.47338005]
[1747339776464,0.27140111,103110.0,103100.0,0.46368139]
[1747339776731,0.27140111,103110.0,103100.0,0.46568158]
[1747339777102,0.2617032,103110.0,103100.0,0.46568177]
[1747339777415,0.2884032,103110.0,103100.0,0.48707937]
[1747339777830,0.0944356,103110.0,103100.0,0.48707937]
[1747339778043,0.2884032,103110.0,103100.0,0.25619937]
[1747339778283,0.05803675,103110.0,103100.0,0.25619871]
[1747339778637,0.06773494,103110.0,103100.0,0.25619871]
[1747339779436,0.06773494,103110.0,103100.0,0.24650005]
[1747339779647,0.27140082,103110.0,103100.0,0.24650005]
[1747339779861,0.2810992,103110.0,103100.0,0.24650005]
[1747339780580,0.01454085,103110.0,103100.0,0.69208947]
[1747339780819,0.04546555,103120.0,103110.0,0.2230616]
[1747339781044,0.04546555,103120.0,103110.0,0.65895236]
[1747339781266,0.04546555,103120.0,103110.0,1.05895236]
[1747339781683,0.0600064,103120.0,103110.0,1.05895236]
[1747339782155,0.04546555,103120.0,103110.0,1.05895236]
[1747339782380,0.0600064,103120.0,103110.0,1.05895236]
[1747339782596,0.04546555,103120.0,103110.0,1.05895236]
[1747339783067,0.0600064,103120.0,103110.0,1.05895236]
[1747339783505,0.0600064,103120.0,103110.0,0.720371]
[1747339783726,0.0600064,103120.0,103110.0,1.05895236]
[1747339784365,0.01454085,103120.0,103110.0,1.05895236]
[1747339785146,0.01454085,103120.0,103110.0,1.28579236]
[1747339785355,0.01454085,103120.0,103110.0,1.31019236]
[1747339787280,0.01454085,103120.0,103110.0,0.971611]
[1747339787742,0.01454085,103120.0,103110.0,1.31019236]
[1747339789069,0.01454085,103120.0,103110.0,1.28579236]
[1747339790848,0.04560871,103130.0,103120.0,0.22303997]
[1747339791064,0.06014956,103130.0,103120.0,0.88977073]
[1747339791275,0.0698453,103130.0,103120.0,0.88977073]
[1747339791492,0.06014956,103130.0,103120.0,1.28977073]
[1747339792660,0.06214956,103130.0,103120.0,1.28977073]
[1747339792867,0.06314956,103130.0,103120.0,1.28977073]
[1747339794852,0.01768401,103130.0,103120.0,1.28977073]
[1747339801153,0.01768401,103130.0,103120.0,0.95118937]
[1747339801374,0.01768401,103130.0,103120.0,1.28977073]
[1747339803357,0.01768401,103130.0,103120.0,0.95118937]
[1747339803771,0.01768401,103130.0,103120.0,1.28245073]
[1747339805034,0.02737975,103130.0,103120.0,0.94386937]
[1747339805241,0.07167198,103130.0,103120.0,0.94386937]
[1747339805441,0.06197577,103130.0,103120.0,0.94386937]
[1747339805902,0.06197568,103130.0,103120.0,0.94386937]
[1747339807471,0.05227975,103130.0,103120.0,0.94386937]
[1747339807690,0.05227985,103130.0,103120.0,0.94386937]
[1747339808121,0.04258401,103130.0,103120.0,0.94386937]
[1747339808530,0.06197568,103130.0,103120.0,0.94386937]
[1747339808738,0.0716718,103130.0,103120.0,0.94386937]
[1747339809567,0.06197568,103130.0,103120.0,0.94386937]
[1747339810204,0.25590567,103130.0,103120.0,0.52447553]
[1747339810424,0.24753987,103120.0,103110.0,0.22352]
[1747339810608,0.27868404,103120.0,103110.0,0.42718598]
[1747339810879,0.27868404,103120.0,103110.0,0.44658245]
[1747339811100,0.27868404,103120.0,103110.0,0.42718598]
[1747339811314,0.27868404,103120.0,103110.0,0.43688426]
[1747339811530,0.27868404,103120.0,103110.0,0.44658235]
[1747339811964,0.27868404,103120.0,103110.0,0.45628035]
[1747339812179,0.27868404,103120.0,103110.0,0.46597826]
[1747339812392,0.27868404,103120.0,103110.0,0.44658235]
[1747339812610,0.27868404,103120.0,103110.0,0.45628026]
[1747339812821,0.09443259,103120.0,103110.0,0.46597807]
[1747339813048,0.29807881,103120.0,103110.0,0.45628026]
[1747339813267,0.09443259,103120.0,103110.0,0.46597807]
[1747339813491,0.29807881,103120.0,103110.0,0.45628035]
[1747339813707,0.29807881,103120.0,103110.0,0.46597826]
[1747339814387,0.09443259,103120.0,103110.0,0.46597713]
[1747339814604,0.28838138,103120.0,103110.0,0.43688407]
[1747339814884,0.28838138,103120.0,103110.0,0.44658207]
[1747339815313,0.28838138,103120.0,103110.0,0.45627998]
[1747339816380,0.62696274,103120.0,103110.0,0.22352]
[1747339816590,0.60756834,103120.0,103110.0,0.22352]
[1747339817238,0.05359644,103100.0,103090.0,0.44662478]
[1747339817457,0.06329538,103100.0,103090.0,0.55363378]
[1747339817675,0.27872572,103100.0,103080.0,0.20370852]
[1747339817891,0.21852405,103080.0,103070.0,0.8460718]
[1747339818107,0.2282244,103080.0,103070.0,0.95308325]
[1747339818325,0.2282244,103080.0,103070.0,0.96278492]
[1747339818585,0.2379256,103080.0,103070.0,0.95308344]
[1747339818803,0.25732696,103080.0,103070.0,0.53424344]
[1747339819026,0.25732828,103080.0,103070.0,0.44663571]
[1747339819233,0.28846821,103080.0,103070.0,0.22559848]
[1747339820101,0.28846821,103080.0,103070.0,0.22759848]
[1747339820287,0.2690661,103080.0,103070.0,0.00448268]
[1747339821060,0.2690661,103080.0,103070.0,0.19852556]
[1747339821264,0.2690661,103080.0,103070.0,0.20622751]
[1747339821460,0.2690661,103080.0,103070.0,0.22363094]
[1747339821662,0.01454085,103080.0,103070.0,0.57391378]
[1747339821862,0.3496995,103090.0,103080.0,0.2231268]
[1747339822070,0.0253,103090.0,103080.0,0.23282734]
[1747339822326,0.4506615,103100.0,103090.0,0.22310515]
[1747339822482,0.07076555,103100.0,103090.0,0.23280475]
[1747339822681,0.09986209,103100.0,103090.0,0.22310515]
[1747339822887,0.30354783,103100.0,103090.0,0.21340546]
[1747339823086,0.30354783,103100.0,103090.0,0.22310534]
[1747339823295,0.27262313,103100.0,103090.0,0.23280513]
[1747339823506,0.25808228,103100.0,103090.0,0.23280513]
[1747339823755,0.25808228,103100.0,103090.0,0.24250482]
[1747339823968,0.27262313,103100.0,103090.0,0.23280513]
[1747339824381,0.27562313,103100.0,103090.0,0.23280513]
[1747339824530,0.01454085,103090.0,103080.0,0.30103399]
[1747339824869,0.05333933,103090.0,103080.0,0.31073481]
[1747339825328,0.08863949,103090.0,103080.0,0.21342541]
[1747339825767,0.0886394,103090.0,103080.0,0.21342541]
[1747339825977,0.0896394,103090.0,103080.0,0.21342541]
[1747339826390,0.0660394,103090.0,103080.0,0.43210541]
[1747339826592,0.05633933,103090.0,103080.0,0.43210541]
[1747339826805,0.0660393,103090.0,103080.0,0.43210541]
[1747339827147,0.05633942,103090.0,103080.0,0.43210541]
[1747339827772,0.05633942,103090.0,103080.0,0.77068677]
[1747339827978,0.06603958,103090.0,103080.0,0.43210541]
[1747339828177,0.04663945,103090.0,103080.0,0.43210541]
[1747339828437,0.06603931,103090.0,103080.0,0.43210541]
[1747339829053,0.05633924,103090.0,103080.0,0.43210541]
[1747339829260,0.06603931,103090.0,103080.0,0.43210541]
[1747339829465,0.09093931,103090.0,103080.0,0.43210541]
[1747339830153,0.27524579,103090.0,103080.0,0.21868]
[1747339830374,0.28054631,103090.0,103080.0,0.21868]
[1747339831039,0.27084624,103090.0,103080.0,0.21868]
[1747339834636,0.27084624,103090.0,103080.0,0.21851488]
[1747339836286,0.20372515,103080.0,103070.0,0.44234645]
[1747339836491,0.20372515,103080.0,103070.0,0.43264497]
[1747339836692,0.23052515,103080.0,103070.0,0.44234683]
[1747339837623,0.245066,103080.0,103070.0,0.21920268]
[1747339838649,0.245066,103080.0,103070.0,0.4229477]
[1747339838901,0.245066,103080.0,103070.0,0.4423517]
[1747339839324,0.245066,103080.0,103070.0,0.43264975]
[1747339841956,0.245066,103080.0,103070.0,0.4423517]
[1747339843084,0.245066,103080.0,103070.0,0.45205356]
[1747339843781,0.04364294,103080.0,103070.0,0.80033602]
[1747339844422,0.04364294,103080.0,103070.0,0.46175466]
[1747339844634,0.05334395,103080.0,103070.0,0.46175466]
[1747339844869,0.06304505,103080.0,103070.0,0.46175466]
[1747339845144,0.2570691,103080.0,103070.0,0.46175475]
[1747339845372,0.25706976,103080.0,103070.0,0.46175418]
[1747339845578,0.28266976,103080.0,103070.0,0.4520527]
[1747339845794,0.28266976,103080.0,103070.0,0.46175418]
[1747339846230,0.07894451,103080.0,103070.0,0.46175418]
[1747339847510,0.28266976,103080.0,103070.0,0.46175418]
[1747339848353,0.28266976,103080.0,103070.0,0.4520527]
[1747339848609,0.61774856,103080.0,103070.0,0.21920268]
[1747339848834,1.08368733,103080.0,103070.0,0.00048268]
[1747339849092,1.03533937,103080.0,103070.0,0.00048268]
[1747339849527,1.04214402,103080.0,103070.0,0.00048268]
[1747339849965,0.96455321,103080.0,103070.0,0.00048268]
[1747339853375,0.62597185,103080.0,103070.0,0.00048268]
[1747339853582,0.96455321,103080.0,103070.0,0.00048268]
[1747339854482,1.06186261,103080.0,103070.0,0.00048268]
[1747339854698,0.60848568,103070.0,103060.0,0.00846298]
[1747339854935,1.25837644,103070.0,103060.0,0.00846298]
[1747339855150,1.26518109,103070.0,103060.0,0.00846298]
[1747339855564,1.27476821,103070.0,103060.0,0.00846298]
[1747339855989,1.27676821,103070.0,103060.0,0.00846298]
[1747339856658,1.27776821,103070.0,103060.0,0.00846298]
[1747339857685,1.97096821,103070.0,103060.0,0.00846298]
[1747339857894,1.77178862,103070.0,103060.0,0.00846298]
[1747339858100,1.98510862,103070.0,103060.0,0.00846298]
[1747339858307,2.08241802,103070.0,103060.0,0.00846298]
[1747339859138,1.98510862,103070.0,103060.0,0.00846298]
[1747339859374,1.42362014,103070.0,103060.0,0.00846298]
[1747339860009,1.7622015,103070.0,103060.0,0.00846298]
[1747339863711,1.7622015,103070.0,103060.0,0.00610183]
[1747339864954,1.29679219,103070.0,103060.0,0.00610183]
[1747339865157,1.26418754,103070.0,103060.0,0.21956961]
[1747339865371,1.26418773,103070.0,103060.0,0.20986662]
[1747339865795,1.25448578,103070.0,103060.0,0.20986662]
[1747339865976,1.24478373,103070.0,103060.0,0.20986662]
[1747339866132,0.90478373,103070.0,103060.0,0.21956961]
[1747339866350,0.92418735,103070.0,103060.0,0.23897473]
[1747339866695,0.26009235,103070.0,103060.0,0.45297492]
[1747339866900,0.26009235,103070.0,103060.0,0.46267744]
[1747339867321,0.04664538,103070.0,103060.0,0.46267678]
[1747339867513,0.06604938,103070.0,103060.0,0.46267678]
[1747339867748,0.26009226,103070.0,103060.0,0.46267678]
[1747339867965,0.0466452,103070.0,103060.0,0.48917678]
[1747339868212,0.0466452,103070.0,103060.0,0.92506754]
[1747339868213,0.01270148,103070.0,103060.0,0.92506754]
[1747339868425,0.036944,103070.0,103060.0,0.58648618]
[1747339870219,0.04664586,103070.0,103060.0,0.58648618]
[1747339870418,0.04664586,103070.0,103060.0,0.31741123]
[1747339870703,1.0641717,103070.0,103060.0,0.00610183]
[1747339871120,1.16827242,103070.0,103060.0,0.00610183]
[1747339871323,1.14226043,103070.0,103060.0,0.00610183]
[1747339871503,1.06466962,103070.0,103060.0,0.00610183]
[1747339873828,1.06166962,103070.0,103060.0,0.00610183]
[1747339874068,1.13926043,103070.0,103060.0,0.00610183]
[1747339874271,0.82339766,103070.0,103060.0,0.00610183]
[1747339874479,1.16197902,103070.0,103060.0,0.00610183]
[1747339874706,1.16497902,103070.0,103060.0,0.00610183]
[1747339874939,1.24256983,103070.0,103060.0,0.00610183]
[1747339875368,1.16497902,103070.0,103060.0,0.00610183]
[1747339875824,1.06766962,103070.0,103060.0,0.00610183]
[1747339876037,0.94268826,103070.0,103060.0,0.00610183]
[1747339876247,0.93664826,103070.0,103060.0,0.00610183]
[1747339876473,0.95093528,103070.0,103060.0,0.00610183]
[1747339876681,0.95693528,103070.0,103060.0,0.00610183]
[1747339876888,0.94264826,103070.0,103060.0,0.00610183]
[1747339877091,0.91734826,103070.0,103060.0,0.00610183]
[1747339877509,0.69778826,103070.0,103060.0,0.00610183]
[1747339877721,0.69878826,103070.0,103060.0,0.00610183]
[1747339877923,0.70078826,103070.0,103060.0,0.00610183]
[1747339878338,0.60347886,103070.0,103060.0,0.00610183]
[1747339878571,0.57823615,103070.0,103060.0,0.00610183]
[1747339879013,0.592777,103070.0,103060.0,0.00610183]
[1747339879219,0.591777,103070.0,103060.0,0.00610183]
[1747339879645,0.58298568,103070.0,103060.0,0.00710183]
[1747339879823,0.58298568,103070.0,103060.0,0.00810183]
[1747339881477,0.58978632,103070.0,103060.0,0.00810183]
[1747339882121,0.56508632,103070.0,103060.0,0.00810183]
[1747339882536,0.59208632,103070.0,103060.0,0.00810183]
[1747339884223,0.93066768,103070.0,103060.0,0.00810183]
[1747339884426,0.9122841,103070.0,103060.0,0.00810183]
[1747339884880,1.0349935,103070.0,103060.0,0.00810183]
[1747339885734,1.04973317,103070.0,103060.0,0.00810183]
[1747339887638,1.74293317,103070.0,103060.0,0.00810183]
[1747339891323,1.74293317,103070.0,103060.0,0.00636542]
[1747339897855,1.46590534,103070.0,103060.0,0.00636542]
[1747339898086,1.49773276,103070.0,103060.0,0.00536542]
[1747339898304,1.05173317,103070.0,103060.0,0.00536542]
[1747339898785,1.13900013,103070.0,103060.0,0.00536542]
[1747339899047,1.13900013,103070.0,103060.0,0.00436542]
[1747339899048,1.14200013,103070.0,103060.0,0.00436542]
[1747339899287,1.14400013,103070.0,103060.0,0.00436542]
[1747339899888,1.14800013,103070.0,103060.0,0.00436542]
[1747339901902,1.25800013,103070.0,103060.0,0.00436542]
[1747339902103,1.21248802,103070.0,103060.0,0.00436542]
[1747339903012,0.21830545,103060.0,103050.0,0.01065339]
[1747339903248,0.71149685,103060.0,103050.0,0.01065339]
[1747339903929,0.68669685,103060.0,103050.0,0.01065339]
[1747339904172,0.68869685,103060.0,103050.0,0.01065339]